Cogmind - Beta 14 @@@ ROGUE MODE // 2024.08.27 @ 20:10:18 Player: MadBadger Result: Destroyed by XX-H37(R) with Subdweller Machine Gun Performance ------------- Evolutions (0) 0 Regions Visited (3) 600 Robots Destroyed (46) 230 Value Destroyed (668) 668 Prototype IDs (1) 20 Alien Tech Used (0) 0 Bonus (0) 0 TOTAL SCORE: 1518 Bonus ------- None Cogmind --------- Core Integrity 0/250 Matter 256/300 Energy 280/280 System Corruption 14% Temperature Cool (0) Movement Rolling (105) Ox1 Location -10/Subcaves Parts ------- > --- POWER (1) -------- Heavy Ion Engine > --- PROPULSION (2) --- Armored Wheel (fused) Armored Wheel > --- UTILITY (2) ------ Large Storage Unit Light Armor Plating > --- WEAPON (2) ------- Autogun (fused) Rocket Launcher > --- INVENTORY (15) --- Light Ion Engine Light Nuclear Core Light Treads Light Treads Wheel Wheel Wheel Targeting Computer Targeting Computer Light Armor Plating Light Assault Rifle Autogun Grenade Launcher Grenade Launcher Mining Laser Peak State ------------ > --- POWER ------------ Heavy Ion Engine > --- PROPULSION ------- Armored Wheel Armored Wheel > --- UTILITY ---------- Small Storage Unit Large Storage Unit > --- WEAPON ----------- Autogun Autogun > --- INVENTORY -------- Heavy Ion Engine Light Treads Light Treads Armored Wheel Armored Wheel Autogun Autogun Grenade Launcher [Rating: 14] Favorites ----------- Power Heavy Ion Engine Engine Heavy Ion Engine Propulsion Armored Wheel Treads Light Treads Wheel Armored Wheel Utility Large Storage Unit Storage Large Storage Unit Processor Targeting Computer Protection Light Armor Plating Weapon Autogun Ballistic Gun Autogun Launcher Rocket Launcher Special Weapon Mining Laser Build | -11 -10 -10 -10 ------- Run | Yrd Mat Min Sub Slots Evolved . | . . . . Power . | . . . . Propulsion . | . . . . Utility . | . . . . Weapon . | . . . . Parts Attached 25 | 6 10 8 1 Power 3 | 1 1 1 . Engine 3 | 1 1 1 . Core . | . . . . Reactor . | . . . . Propulsion 7 | 2 3 2 . Treads 2 | 2 . . . Leg . | . . . . Wheel 5 | . 3 2 . Hover . | . . . . Flight . | . . . . Utility 4 | 1 2 1 . Device . | . . . . Storage 2 | 1 1 . . Processor 1 | . 1 . . Hackware . | . . . . Protection 1 | . . 1 . Artifact . | . . . . Weapon 11 | 2 4 4 1 Energy Gun . | . . . . Energy Cannon . | . . . . Ballistic Gun 6 | 2 4 . . Ballistic Cannon . | . . . . Launcher 2 | . . 1 1 Special Weapon 3 | . . 3 . Impact Weapon . | . . . . Slashing Weapon . | . . . . Piercing Weapon . | . . . . Special Melee Weapon . | . . . . Unidentified Prototypes 1 | . 1 . . Parts Lost 7 | . 3 4 . Power 1 | . . 1 . Propulsion 2 | . 1 1 . Utility 1 | . . 1 . Weapon 3 | . 2 1 . Highest Loss Streak 3 | . 3 2 . To Critical Strikes . | . . . . Average Slot Usage (%) 91 | . 88 93 100 Engine 13 | . 14 13 14 Wheel 25 | . 22 27 28 Storage 14 | . 14 14 14 Processor 5 | . 7 2 . Protection 4 | . . 8 14 Ballistic Gun 20 | . 27 14 14 Special Weapon 5 | . . 9 4 Peak Build Rating 14 | 6 14 14 14 Average Rating 12 | 4 12 12 13 On Entrance 8 | . 6 14 13 Naked Turns . | . . . . Heaviest Build 38 | 11 34 35 38 Greatest Support 40 | 40 40 24 24 Greatest Overweight (x) 2 | . 2 2 1 Average Overweight (x) 1 | . 1 1 1 Largest Inventory Capacity 15 | 8 15 15 15 Average Capacity 14 | 7 14 15 15 Most Carried 15 | 2 9 15 15 Average Carried 9 | 1 7 11 15 Final Capacity 15 | 8 15 15 15 Final Carried 15 | 2 8 15 15 Class Distribution -------------------- 100% | Mutant Dominant Class ---------------- Mutant | -10/Materials Mutant | -10/Mines Mutant | -10/Subcaves Resources | -11 -10 -10 -10 ----------- Run | Yrd Mat Min Sub Matter Collected 1330 | 169 718 424 19 Remotely . | . . . . Salvage Created 1090 | . 580 484 26 Parts 82 | . 46 35 1 Haulers Intercepted . | . . . . Recyclers Shooed 2 | . . 2 . Parts Field Recycled . | . . . . Retrieved Matter . | . . . . Parts Self-Destructed 6 | . . . 6 Prevented . | . . . . Kills | -11 -10 -10 -10 ------- Run | Yrd Mat Min Sub Combat Hostiles Destroyed 26 | . 16 9 1 Guns 21 | . 16 5 . Cannons 1 | . . 1 . AOE 4 | . . 3 1 Classes Destroyed 9 | . 4 4 1 Worker 8 | . 4 4 . Builder 4 | . . 4 . Tunneler 3 | . . 3 . Recycler 4 | . . 4 . Watcher 3 | . 3 . . Swarmer 12 | . 9 3 . Grunt 11 | . 7 4 . Subdweller 1 | . . . 1 Assembled 2 | . . 2 . Best Kill Streak 7 | . 4 7 1 Combat Bots Only 4 | . 3 4 1 Max Kills in Single Turn 4 | . 2 4 1 Gunslinging 1 | . 1 . . Exploded 2 | . . 2 1 Melee . | . . . . Uniques/NPCs Destroyed . | . . . . Combat | -11 -10 -10 -10 -------- Run | Yrd Mat Min Sub Hostile Shots Fired 131 | . 89 38 4 Missed 31 | . 20 8 3 Damage Taken 1224 | . 831 372 21 Core 269 | . 144 104 21 Absorbed by Shields . | . . . . Core Remaining (%) 100 | 100 . . . Volleys Fired 198 | . 69 126 3 Largest 2 | . 2 2 1 Hottest 123 | . 46 123 33 Shots Fired 279 | . 129 147 3 Gun 176 | . 129 47 . Cannon . | . . . . Launcher 7 | . . 4 3 Special 96 | . . 96 . Kinetic 176 | . 129 47 . Thermal 96 | . . 96 . Explosive 7 | . . 4 3 Electromagnetic . | . . . . Robot Hit Streak 7 | . 7 7 1 Robot Miss Streak 6 | . 6 3 1 Penetration Max . | . . . . Secondary Targets 1 | . 1 . . Max Gunslinging Chain 1 | . 1 . . Shots Hit Robots 112 | . 68 42 2 Core Hits 55 | . 28 25 2 Critical Kills 1 | . 1 . . Critical Parts Destroyed . | . . . . Critical Strikes 1 | . 1 . . Destroy 1 | . 1 . . Melee Attacks . | . . . . Impact . | . . . . Slashing . | . . . . Piercing . | . . . . Sneak Attacks . | . . . . Combat Hostiles . | . . . . Follow-up Attacks . | . . . . Damage Inflicted 2276 | . 1022 1070 184 Guns 1501 | . 1001 500 . Cannons . | . . . . Explosions 526 | . . 342 184 Melee . | . . . . Ramming 33 | . 21 12 . Kinetic 1501 | . 1001 500 . Thermal 216 | . . 216 . Explosive 526 | . . 342 184 Electromagnetic . | . . . . Impact . | . . . . Slashing . | . . . . Piercing . | . . . . Highest Corruption 14 | . 5 14 14 Average Corruption 7 | . 3 10 14 Corruption Purged . | . . . . Corruption Blocked . | . . . . Effects 96 | . 26 67 3 Message Errors 22 | . 7 14 1 Matter Fused 27 | . 5 20 2 Heat Flow Errors 7 | . 2 5 . Energy Discharges 14 | . 5 9 . Parts Rejected 2 | . . 2 . Parts Fused 2 | . . 2 . Data Loss (minor) 12 | . 5 7 . Data Loss (major) 3 | . . 3 . Misfires 3 | . 1 2 . Alerts 1 | . . 1 . Weapon Failures 3 | . 1 2 . Overload Shots . | . . . . Overflow Damage 11 | . . 11 . Projectiles 11 | . . 11 . Explosions . | . . . . Melee . | . . . . Knockbacks . | . . . . Impact . | . . . . Kinetic . | . . . . Secondary . | . . . . Self-Inflicted Damage 15 | . 10 5 . Shots . | . . . . Rammed 6 | . 4 2 . Targets Rammed 6 | . 4 2 . Kicked . | . . . . Crushed . | . . . . Highest Temperature 374 | . 255 374 . Average Temperature 95 | . 36 110 . Received Heat Transfer 351 | . 258 93 . Effects 7 | . . 7 . Shutdowns 1 | . . 1 . Energy Bleed 6 | . . 6 . Siege Activations . | . . . . Robots Corrupted . | . . . . Combat Hostiles . | . . . . Parts Fried . | . . . . Impact Corruptions . | . . . . Robots Melted . | . . . . Combat Hostiles . | . . . . Parts Melted 2 | . . 2 . Heat Transferred 450 | . . 450 . Parts Sabotaged . | . . . . Parts Stolen . | . . . . Parts Stripped . | . . . . Power Chain Reactions . | . . . . Alert | -11 -10 -10 -10 ------- Run | Yrd Mat Min Sub Peak Influence 238 | . 238 220 . Initial . | . . . . Average 63 | . 101 33 . Maximum Alert Level 1 | . 1 1 . Low Security (%) 90 | 100 85 94 . Level 1 9 | . 14 5 . Level 2 . | . . . . Level 3 . | . . . . Level 4 . | . . . . Level 5 . | . . . . High Security . | . . . . Max Security . | . . . . Squads Dispatched 1 | . 1 . . Investigation 1 | . 1 . . Extermination . | . . . . Reinforcement . | . . . . Assault . | . . . . Garrison . | . . . . Intercept . | . . . . Searches Triggered . | . . . . Construction Impeded . | . . . . Haulers Reinforced . | . . . . Active Scanning Responses . | . . . . Cargo Convoy Interrupts . | . . . . Stealth | -11 -10 -10 -10 --------- Run | Yrd Mat Min Sub Distress Signals . | . . . . Communications Jammed . | . . . . Distress Signals . | . . . . Times Spotted 38 | . 25 11 2 Peak Tracking Total 5 | . 5 3 2 Tactical Retreats 2 | . 2 . . Traps | -11 -10 -10 -10 ------- Run | Yrd Mat Min Sub Traps Triggered 6 | . 6 . . Indirectly . | . . . . Trap Hack Attempts . | . . . . Triggered . | . . . . Disarmed . | . . . . Reprogrammed . | . . . . Reused . | . . . . Traps Extracted . | . . . . Installed . | . . . . Triggered . | . . . . Machines | -11 -10 -10 -10 ---------- Run | Yrd Mat Min Sub Machines Disabled . | . . . . Max in Single Turn . | . . . . Machines Repaired . | . . . . Machines Dismantled . | . . . . Machines Sabotaged . | . . . . Overloaded Fab Kills . | . . . . Hacking | -11 -10 -10 -10 --------- Run | Yrd Mat Min Sub Machines Accessed . | . . . . Terminals . | . . . . Fabricators . | . . . . Repair Stations . | . . . . Recycling Units . | . . . . Scanalyzers . | . . . . Garrison Access . | . . . . Total Hacks . | . . . . Successful . | . . . . Failed . | . . . . Catastrophic . | . . . . Database Lockouts . | . . . . Manual . | . . . . Terminals . | . . . . Fabricators . | . . . . Repair Stations . | . . . . Recycling Units . | . . . . Scanalyzers . | . . . . Garrison Access . | . . . . Terminal Hacks . | . . . . Fabricator Hacks . | . . . . Repair Station Hacks . | . . . . Recycling Unit Hacks . | . . . . Scanalyzer . | . . . . Garrison Access Hacks . | . . . . Unauthorized Hacks . | . . . . Terminals . | . . . . Fabricators . | . . . . Repair Stations . | . . . . Recycling Units . | . . . . Scanalyzers . | . . . . Garrison Access . | . . . . Data Cores Recovered . | . . . . Used . | . . . . Hacking Detections . | . . . . Full Trace Events . | . . . . Feedback Events . | . . . . Feedback Blocked . | . . . . Robot Schematics Acquired . | . . . . Robots Built . | . . . . Authchips . | . . . . Time . | . . . . Total Robot Build Rating . | . . . . Part Schematics Acquired . | . . . . Parts Built . | . . . . Authchips . | . . . . Time . | . . . . Total Part Build Rating . | . . . . Parts Repaired . | . . . . Time . | . . . . Parts Recycled . | . . . . Recycled Matter . | . . . . Retrieved Matter . | . . . . Retrieved Components . | . . . . Parts Scanalyzed . | . . . . Part Schematics Acquired . | . . . . Parts Damaged . | . . . . Bothacking | -11 -10 -10 -10 ------------ Run | Yrd Mat Min Sub Used RIF Installer . | . . . . Robots Hacked . | . . . . Non-combat . | . . . . Combat . | . . . . Robot Hacks Applied . | . . . . Relay Couplers Released . | . . . . Fabnet Peak Effective % . | . . . . Robots Rewired . | . . . . Allies Hacked . | . . . . Hacks Repelled . | . . . . Allies | -11 -10 -10 -10 -------- Run | Yrd Mat Min Sub Total Allies . | . . . . Largest Group . | . . . . Highest-Rated Group . | . . . . Highest-Rated Ally . | . . . . Total Orders . | . . . . Ally Attacks . | . . . . Total Damage . | . . . . Kills . | . . . . Allies Corrupted . | . . . . Allies Melted . | . . . . Intel | -11 -10 -10 -10 ------- Run | Yrd Mat Min Sub Robot Analysis Total . | . . . . Derelict Logs Recovered 1 | . . 1 . Drone Launches . | . . . . Drone Recoveries . | . . . . Exploration | -11 -10 -10 -10 ------------- Run | Yrd Mat Min Sub Turns Passed 3591 | 72 1602 1828 89 Spaces Moved 2569 | 45 1221 1225 78 Core 9 | 9 . . . Treads 79 | 36 43 . . Legs . | . . . . Wheels 2481 | . 1178 1225 78 Hover . | . . . . Flight . | . . . . Fastest Speed 50 | 50 90 105 105 Average Speed 108 | 138 109 105 105 Slowest Speed 160 | 160 160 120 105 Overloaded Moves . | . . . . Propulsion Burnouts . | . . . . Robots Hopped . | . . . . Cave-ins Triggered . | . . . . Exploration Rate (%) 54 | 5 99 101 11 Regions Visited 3 Branch Regions 2 Pre-discovered Areas . | . . . . Known Exits Taken . | . . . . Unknown Exits Taken 3 | 1 1 1 . Scrap Searched 1 | . . 1 . Spaces Dug 10 | . . 10 . Terrain Destroyed 80 | . . 68 12 Melee . | . . . . Projectile 32 | . . 32 . AOE 48 | . . 36 12 Terrain Rammed . | . . . . Walls Destroyed . | . . . . Machines Disabled . | . . . . Actions | -11 -10 -10 -10 --------- Run | Yrd Mat Min Sub Total 2939 | 52 1379 1426 82 Wait 113 | . 57 56 . Move 2566 | 44 1220 1224 78 Hop . | . . . . Pick Up 22 | 2 10 10 . Fast Attach 13 | 6 4 3 . Attach 6 | . 3 3 . Detach 3 | . 3 . . Swap 6 | . 3 2 1 Drop 6 | . 6 . . Fire 198 | . 69 126 3 Melee . | . . . . Ram 6 | . 4 2 . Kick . | . . . . Crush . | . . . . Escape Stasis . | . . . . Rewire . | . . . . Trap . | . . . . Miscellaneous . | . . . . Route ------- -11/Scrapyard -10/Materials (discovered 6 exits: [*Mat x3] / [*Min x2] / [*Sub]) -10/Mines (discovered 3 exits: [*Mat x2] / [*Sub]) -10/Subcaves History --------- Turn | Location | Event 4 | -11/Scrapyard | Discovered new exit (range 14) 73 | -11/Scrapyard | Entered Materials 236 | -10/Materials | Discovered new exit (range 15) 309 | -10/Materials | Build established: Mutant 309 | -10/Materials | Discovered new exit (range 3) 430 | -10/Materials | Discovered new exit (range 12) 523 | -10/Materials | Discovered new exit (range 16) 665 | -10/Materials | Lost 3 parts (1n2w) 753 | -10/Materials | Discovered new exit (range 11) 1110 | -10/Materials | Discovered new exit (range 8) 1113 | -10/Materials | Core integrity fell below 50% 1675 | -10/Materials | Entered Mines 1752 | -10/Mines | Discovered new exit (range 9) 1816 | -10/Mines | Excavation squad dispatched 1816 | -10/Mines | A large section of the Mines collapsed 1874 | -10/Mines | Core integrity fell below 20% 2315 | -10/Mines | Joined a pair of Derelicts in attacking an 0b10 outpost 2610 | -10/Mines | System corruption reached 10% 2610 | -10/Mines | Learned Materials emergency access door positions 2625 | -10/Mines | Received a Rocket Launcher from a helpful Derelict 2637 | -10/Mines | Discovered new exit (range 9) 3484 | -10/Mines | Discovered new exit (range 10) 3503 | -10/Mines | Entered Subcaves 3531 | -10/Subcaves | Shifting Twisted Machinery released Mak. Leg 3592 | -10/Subcaves | Destroyed by XX-H37(R) with Subdweller Machine Gun Last Messages --------------- 03430_ K|3VM JMPFS6PU31ROD STHTUBIM LOCATION=UNKNOWN AMBIENT_HEAT=-10 GOAL=ESCAPE 03515_ Acquired 8 matter. 03524_ VM9W4KC5KZY3KEQDGF8AH SJVF BM 03528_ Acquired 1 matter. Mak. Leg falls loose from the Twisted Machinery. 03532_ Acquired 10 matter. 03549_ System corrupted: Matter fused (-6). 03584_ System corrupted: Matter fused (-5). 03587_ GK-CNN(R) destroyed. Map ----- +----------------------------------------------------+ | ?????????????????????????????????????????????????? | | ?????????????????????????????????????????????????? | | ?????????????????????????????????????????????????? | | ?????????????????????????????????????????????????? | | ?????????????????????????????????????????????????? | | ?????????????????????????????????????????????????? | | ?????????????????????????????????????????????????? | | ?????????????????????????????????????????????????? | | ?????????????????????????????????????????????????? | | ?????????????????????????????????????????????????? | | ?????????????????????????????????????????????????? | | ??????????????????????????????????????????????##?? | | ????????????????????????????????????????????"" ?? | | ??????????????????????????????????????????? "" "? | | ????????????????????#???????????????????"?##" ?? | | ??????????????????## "#???????????????#"##"" #?? | | ????????????###??## ""??####?????????##" ## ??? | | ???????????## ###" "" ?## ##?????#### """" ##?? | | ???????????# "" ""#?# #????## #?? | | ??????????## " "" #?#"" #????# ##? | | ??????????# """ #?#"" #?????# #?# ## | | ??????????? "" ###"" ####???# ### # | | ????????????# "" "##"" ##???# | | ????????????# """ "#?#" #?### | | ????????????#""" ### ### | | ???????????## @ | | ??????????"""" | | ??????????"""" R* ### ## ###### ## | | ??????????""" ##?# ####????#### #### | | ????? ! #####? #?????????## #?? | | ?????? ?????# #?????????# #?? | | ???? #####??????## #######?????????# #? | | ???? ### ????????????##????????????????# | | ????????# ???????????????????????????????## | | ??????? ??????????????????????????????????## | | ?????? ?????????????????????????????????????# | | ???? ??????????????????????????????????????? | | ???? ???????????????????????????????????????# | | ??????????????????????????????????????????????# | | ?????????????????????????????????????????????????? | | ?????????????????????????????????????????????????? | | ?????????????????????????????????????????????????? | | ?????????????????????????????????????????????????? | | ?????????????????????????????????????????????????? | | ?????????????????????????????????????????????????? | | ?????????????????????????????????????????????????? | | ?????????????????????????????????????????????????? | | ?????????????????????????????????????????????????? | | ?????????????????????????????????????????????????? | | ?????????????????????????????????????????????????? | +----------------------------------------------------+ Best States ------------- Heat Dissipation 25 Energy Generation 14 Energy Capacity 280 Matter Stores 300 Matter Capacity 300 Sight Range 16 Terrain Scan Density 10 Armor Coverage 150 Evasion (%) 42 Targeting Accuracy 5 Recoil Reduction 2 Item Schematics ----------------- None Robot Schematics ------------------ None Fabricated ------------ Nothing Alien Tech Used ----------------- None Achievements -------------- None Challenges ------------ None Game ------ Seed RegenerativeGreatSegregator Manual? 0 Play Time 00:27:27 Cumulative 12.9 hours Start 2024.08.26 @ 23:11:57 End 2024.08.27 @ 20:10:18 Sessions 3 Manual Loads 0 Difficulty Rogue Special Mode None Game No. 21 Rogue 21 Adventurer 0 Explorer 0 Win Type - Total 0 Types 0/0/0/0/0/0/0/0/0 Lore% 5 Gallery% 11 Achievement% 13 Wizard Run 0 Options --------- Layout 0 ASCII 0 Keyboard 1 Movement Numpad Keybinds 0 Fullscreen 1 Font 24/Smallcaps Map View 76x50 Zoom Use 0% Tactical HUD 1 Map Filters NONE Filters NONE Steam 1 RUN: bf16b02a-2ae6-4b21-b75d-c30d8d39ddd5